bitfinex/quotes_SOLUSD_20220212
["timestamp","ask_amount","ask_price","bid_price","bid_amount"]
[1644677159344,9.47584,93.987,93.891,37.86653075]
[1644677159640,9.47584,93.987,93.91,15.9689]
[1644677159843,9.47584,93.987,93.911,37.56910059]
[1644677160342,4.15384,93.987,93.911,37.56910059]
[1644677161342,5.322,93.986,93.911,37.56910059]
[1644677161546,9.47584,93.986,93.911,37.56910059]
[1644677161745,4.15384,93.986,93.911,37.56910059]
[1644677162144,4.15384,93.986,93.912,2.62390296]
[1644677162964,4.15384,93.986,93.92,15.9675]
[1644677163743,4.15384,93.986,93.911,37.56910059]
[1644677163944,5.322,93.985,93.911,37.56910059]
[1644677164145,4.15384,93.986,93.911,37.56910059]
[1644677165045,0.25,93.985,93.911,37.56910059]
[1644677165246,5.322,93.984,93.9,28.6798]
[1644677165551,15.9729,93.98,93.9,28.6798]
[1644677165747,5.322,93.979,93.9,12.71]
[1644677165948,4.15384,93.978,93.9,12.71]
[1644677166451,5.322,93.977,93.9,12.71]
[1644677166649,15.9744,93.97,93.9,12.71]
[1644677166947,20.12824,93.97,93.88,17.44460531]
[1644677167147,28.5344,93.969,93.88,15.9732]
[1644677167547,28.5344,93.969,93.881,47.94585731]
[1644677168245,4.15384,93.968,93.89,15.9731]
[1644677168645,4.15384,93.968,93.891,2.62390296]
[1644677169047,4.15384,93.968,93.901,1.47140531]
[1644677169247,4.15384,93.968,93.91,15.34]
[1644677169545,4.15384,93.968,93.93,15.9658]
[1644677169948,4.15384,93.968,93.903,1.47140531]
[1644677170148,4.15384,93.968,93.91,15.34]
[1644677170748,4.15384,93.968,93.92,15.9685]
[1644677171151,4.15384,93.968,93.921,2.62390296]
[1644677172350,4.15384,93.968,93.91,31.3096]
[1644677172550,4.15384,93.968,93.91,15.9696]
[1644677177857,4.15384,93.968,93.892,1.47140531]
[1644677177858,12.13384,93.968,93.892,1.47140531]
[1644677178078,5.322,93.967,93.88,1.47140531]
[1644677178378,26.72314,93.966,93.862,1.47140531]
[1644677178577,6.76011103,93.965,93.847,1.47140531]
[1644677178776,4.15384,93.964,93.848,44.56832093]
[1644677178981,5.324,93.963,93.854,1.47140531]
[1644677179175,15.976,93.96,93.86,15.9782]
[1644677179375,4.15384,93.958,93.86,15.9782]
[1644677179776,5.574,93.957,93.86,15.9782]
[1644677179976,4.15384,93.955,93.86,15.9782]
[1644677180376,5.324,93.954,93.86,15.9782]
[1644677180578,4.15384,93.953,93.86,15.9782]
[1644677180879,15.9782,93.95,93.86,15.9782]
[1644677181077,4.15384,93.949,93.86,15.9782]
[1644677181277,4.40384,93.949,93.86,15.9782]
[1644677181679,5.324,93.948,93.86,15.9782]
[1644677181880,15.9798,93.94,93.842,1.47140531]
[1644677182077,1.43611103,93.938,93.815,4.43077327]
[1644677182278,1.43611103,93.935,93.815,1.47140531]
[1644677182477,15.34,93.93,93.803,2.62390296]
[1644677182877,0.25,93.929,93.816,16.30019203]
[1644677183078,557.01978399,93.928,93.82,15.9846]
[1644677183277,557.01978399,93.928,93.821,40.36368989]
[1644677183278,5.325,93.927,93.821,40.36368989]
[1644677183578,5.325,93.927,93.821,59.28778488]
[1644677183778,5.325,93.927,93.822,19.22472902]
[1644677183980,557.01978399,93.928,93.822,35.52492105]
[1644677184178,557.01978399,93.928,93.825,1.47140531]
[1644677184379,557.01978399,93.928,93.84,15.34]
[1644677184578,5.325,93.969,93.841,36.40623189]
[1644677184780,49.9131,93.976,93.854,1.47140531]
[1644677184979,5.325,93.975,93.86,15.34]
[1644677185182,49.9131,93.976,93.87,15.34]
[1644677185380,5.324,93.946,93.87,15.34]
[1644677185581,4.15384,93.944,93.87,15.34]
[1644677185780,4.15384,93.944,93.871,45.94529326]
[1644677185980,4.15384,93.944,93.871,62.24548529]
[1644677186184,4.15384,93.944,93.872,2.62390296]
[1644677186489,5.324,93.991,93.872,18.92409499]
[1644677186685,4.15384,93.985,93.89,15.974]
[1644677186879,1.43611103,94.01,93.9,15.34]
[1644677187085,23.2765,94.055,93.9,15.34]
[1644677187086,1.43611103,94.022,93.922,41.04762444]
[1644677187282,1.43611103,94.041,93.95,191.79]
[1644677187480,5.32,94.06,93.95,191.79]
[1644677187481,1.43611103,94.053,93.962,39.73298334]
[1644677187681,1.43611103,94.077,93.97,191.79]
[1644677187882,1.43611103,94.087,94.01,15.9477]
[1644677188081,1.43611103,94.092,94.02,15.34]
[1644677188281,1.43611103,94.095,94.02,15.34]
[1644677188485,39.7036,94.137,94.02,15.34]
[1644677188486,1.43611103,94.123,94.02,15.34]
[1644677188685,1.43611103,94.136,94.04,191.79]
[1644677188986,1.43611103,94.159,94.081,5.0]
[1644677189181,1.43611103,94.167,94.09,15.34]
[1644677189383,1.43611103,94.17,94.09,15.34]
[1644677189581,1.43611103,94.156,94.09,15.34]
[1644677189784,1.43611103,94.151,94.09,15.34]
[1644677189980,1.43611103,94.142,94.082,36.84904127]
[1644677190182,1.43611103,94.14,94.082,36.84904127]
[1644677190582,1.43611103,94.147,94.082,36.84904127]
[1644677190781,53.1486,94.19,94.082,36.84904127]
[1644677190782,5.312,94.139,94.082,36.84904127]
[1644677190984,1.43611103,94.149,94.082,36.84904127]
[1644677191284,1.43611103,94.16,94.09,15.9374]
[1644677191489,1.43611103,94.176,94.1,15.34]
[1644677191683,1.43611103,94.176,94.101,39.80057987]
[1644677191884,1.43611103,94.185,94.101,39.80057987]
[1644677192085,2.62390296,94.203,94.101,39.80057987]
[1644677192086,451.68514168,94.182,94.101,39.80057987]
[1644677192486,451.68514168,94.182,94.11,15.9338]
[1644677192685,451.68514168,94.182,94.11,31.2738]
[1644677193184,5.309,94.181,94.11,31.2738]
[1644677193989,5.309,94.181,94.11,15.34]
[1644677194187,5.309,94.181,94.09,15.34]
[1644677194388,1.43611103,94.179,94.09,15.34]
[1644677194588,5.311,94.178,94.09,15.34]
[1644677194789,5.311,94.18,94.09,15.34]
[1644677194988,5.311,94.181,94.09,15.34]
[1644677195189,5.311,94.181,94.091,38.08238178]
[1644677195389,5.311,94.181,94.1,15.9352]
[1644677195589,5.311,94.181,94.1,31.2752]
[1644677196497,5.311,94.181,94.1,15.34]
[1644677197791,5.311,94.181,94.1,31.2756]
[1644677198292,5.311,94.181,94.1,33.89950296]
[1644677198490,5.311,94.181,94.1,31.2756]
[1644677198791,0.25,94.18,94.1,15.34]
[1644677198993,5.311,94.179,94.1,15.34]
[1644677199190,5.311,94.179,94.07,18.56250296]
[1644677199191,0.25,94.178,94.08,15.34]
[1644677199391,4.811,94.177,94.08,15.34]
[1644677199691,0.25,94.176,94.08,15.34]
[1644677199891,5.311,94.175,94.081,39.44597508]
[1644677200090,7.93490296,94.175,94.081,39.44597508]
[1644677200291,2.62390296,94.174,94.081,39.44597508]
[1644677200493,5.311,94.173,94.081,39.44597508]
[1644677200694,5.311,94.179,94.081,39.44597508]
[1644677201094,5.311,94.189,94.082,2.62390296]
[1644677202897,5.311,94.189,94.09,15.9371]
[1644677203100,5.311,94.189,94.1,15.34]
[1644677203296,5.311,94.189,94.101,40.0312264]
[1644677203496,5.311,94.189,94.101,42.65512936]
[1644677203999,5.311,94.189,94.102,2.62390296]
[1644677204197,5.311,94.189,94.101,40.0312264]
[1644677204899,5.311,94.189,94.101,42.65512936]
[1644677205497,382.07689145,94.19,94.101,42.65512936]
[1644677207398,382.07689145,94.19,94.11,15.9318]
[1644677207598,382.07689145,94.19,94.12,15.34]
[1644677207801,180.85890346,94.19,94.121,46.70397107]
[1644677207999,5.309,94.234,94.131,5.0]
[1644677208201,5.309,94.252,94.14,15.34]
[1644677208399,1.43611103,94.26,94.141,105.1]
[1644677208600,1.43611103,94.269,94.161,105.1]
[1644677208801,5.307,94.268,94.17,15.34]
[1644677209105,1.43611103,94.266,94.171,31.83941083]
[1644677209500,39.82290977,94.272,94.171,31.83941083]
[1644677209702,5.306,94.266,94.172,2.62390296]
[1644677209900,5.306,94.271,94.172,2.62390296]
[1644677210101,39.82290977,94.272,94.172,2.62390296]
[1644677210401,5.306,94.271,94.172,2.62390296]
[1644677210902,5.306,94.271,94.18,15.9207]
[1644677211102,39.82290977,94.272,94.19,15.34]
[1644677211304,44.13230247,94.255,94.182,27.0]
[1644677211508,44.13230247,94.255,94.191,41.09905147]
[1644677211811,44.13230247,94.255,94.19,15.34]
[1644677212003,5.306,94.254,94.19,15.34]
[1644677213205,1.43611103,94.257,94.191,2.62390296]
[1644677213404,1.43611103,94.267,94.191,2.62390296]
[1644677213604,1.43611103,94.266,94.191,2.62390296]
[1644677214007,1.43611103,94.268,94.191,2.62390296]
[1644677214205,43.33757236,94.267,94.191,2.62390296]
[1644677214805,43.33757236,94.267,94.2,15.9178]
[1644677215007,43.33757236,94.267,94.211,32.79495338]
[1644677215608,1.43611103,94.245,94.211,32.79495338]
[1644677215807,1.43611103,94.244,94.211,32.79495338]
[1644677216210,1.43611103,94.243,94.211,32.79495338]
[1644677216811,4.31894299,94.296,94.212,2.62390296]
[1644677216812,0.00611103,94.25,94.212,2.62390296]
[1644677217014,0.00611103,94.25,94.212,17.48890296]
[1644677217209,2.87929532,94.28,94.213,105.1]
[1644677217412,24.8949,94.299,94.213,105.1]
[1644677217413,2.87929532,94.285,94.213,107.72390296]
[1644677217610,43.41127307,94.293,94.22,15.9146]
[1644677217611,2.87929532,94.288,94.22,15.9146]
[1644677217812,2.87929532,94.287,94.23,15.34]
[1644677218014,4.72355639,94.292,94.23,15.34]
[1644677218015,2.87929532,94.284,94.23,15.34]
[1644677218212,2.87929532,94.296,94.231,2.62390296]
[1644677218614,2.87929532,94.287,94.23,15.34]
[1644677218811,2.87929532,94.282,94.23,15.34]
[1644677219012,2.87929532,94.282,94.231,37.74585814]
[1644677219233,2.87929532,94.281,94.231,37.74585814]
[1644677219413,2.87929532,94.281,94.23,15.34]
[1644677219814,2.87929532,94.279,94.23,15.34]
[1644677220014,8.18329532,94.278,94.23,15.34]
[1644677220215,4.72355639,94.277,94.23,15.34]
[1644677220517,2.87929532,94.278,94.23,15.34]
[1644677220717,4.72355639,94.276,94.23,15.34]
[1644677220917,2.87929532,94.281,94.23,15.34]
[1644677221319,2.87929532,94.28,94.23,15.34]
[1644677221515,2.87929532,94.275,94.23,15.34]
[1644677221720,2.87929532,94.27,94.23,15.34]
[1644677221920,2.87929532,94.253,94.171,5.304]
[1644677222119,2.87929532,94.25,94.15,20.645]
[1644677222416,37.86181415,94.249,94.172,5.307]
[1644677222617,7.60285171,94.248,94.18,15.34]
[1644677222915,2.87929532,94.247,94.18,15.34]
[1644677223117,2.87929532,94.246,94.18,15.34]
[1644677223718,5.307,94.245,94.18,15.34]
[1644677223919,11.50929532,94.246,94.161,2.62390296]
[1644677224123,2.87929532,94.228,94.14,15.34]
[1644677224420,5.557,94.244,94.12,15.34]
[1644677224421,2.87929532,94.217,94.12,15.34]
[1644677224623,2.87929532,94.207,94.121,47.30342983]
[1644677224818,2.87929532,94.209,94.121,49.92733279]
[1644677225219,10.03255639,94.215,94.121,49.92733279]
[1644677225220,4.72355639,94.214,94.122,20.30204444]
[1644677225619,4.72355639,94.215,94.123,38.04470383]
[1644677225820,4.72355639,94.215,94.124,105.1]
[1644677226019,4.72355639,94.215,94.124,38.04470383]
[1644677226222,5.559,94.214,94.124,20.30204444]
[1644677226422,2.87929532,94.209,94.125,2.62390296]
[1644677226621,2.87929532,94.211,94.125,2.62390296]
[1644677226822,5.309,94.212,94.125,125.46656235]
[1644677227024,4.72355639,94.211,94.125,38.04470383]
[1644677227222,2.87929532,94.214,94.126,2.62390296]
[1644677227536,2.87929532,94.209,94.14,12.75]
[1644677227719,2.87929532,94.203,94.126,2.62390296]
[1644677227919,2.87929532,94.203,94.138,25.63503247]
[1644677228120,4.72355639,94.208,94.141,2.62390296]
[1644677228320,34.24694453,94.216,94.088,17.67814148]
[1644677228321,2.87929532,94.201,94.12,12.75]
[1644677228521,2.87929532,94.201,94.101,2.62390296]
[1644677228721,2.87929532,94.201,94.088,17.67814148]
[1644677228722,2.87929532,94.189,94.1,12.75]
[1644677228921,5.309,94.188,94.1,12.75]
[1644677229122,44.48606524,94.187,94.101,35.27441148]
[1644677229421,10.03455639,94.186,94.101,37.89831444]
[1644677229621,39.76250885,94.187,94.11,15.9308]
[1644677229825,39.76250885,94.187,94.11,28.6808]
[1644677230324,39.76250885,94.187,94.11,12.75]
[1644677230526,10.03499794,94.186,94.11,12.75]
[1644677230821,4.72599794,94.185,94.11,12.75]
[1644677231024,2.87929532,94.175,94.09,12.75]
[1644677231226,2.87929532,94.17,94.09,12.75]
[1644677231623,39.88701672,94.169,94.09,12.75]
[1644677231821,42.76631204,94.169,94.09,12.75]
[1644677232120,4.72599794,94.168,94.09,12.75]
[1644677232326,4.72599794,94.168,94.092,105.1]
[1644677232522,4.72599794,94.168,94.093,29.801928]
[1644677232725,4.72599794,94.168,94.091,35.42080087]
[1644677232726,34.57601672,94.169,94.091,35.42080087]
[1644677232926,5.311,94.167,94.09,12.75]
[1644677233124,10.04031339,94.168,94.09,12.75]
[1644677233325,4.72931339,94.167,94.09,12.75]
[1644677233725,0.25,94.166,94.09,12.75]
[1644677233925,4.72931339,94.165,94.09,12.75]
[1644677234343,15.9423,94.16,94.052,17.74265939]
[1644677234546,2.87929532,94.158,94.06,12.75]
[1644677234745,0.25,94.157,94.06,12.75]
[1644677234947,2.87929532,94.151,94.06,12.75]
[1644677235146,2.87929532,94.151,94.033,17.67814148]
[1644677235147,2.87929532,94.15,94.04,12.75]
[1644677235346,2.87929532,94.143,93.97,15.9529]
[1644677235547,2.87929532,94.133,93.97,15.9529]
[1644677235748,2.87929532,94.109,93.98,12.75]
[1644677235944,10.12,94.109,93.981,17.67814148]
[1644677236146,4.97931339,94.108,93.981,17.67814148]
[1644677236348,35.70390971,94.107,93.982,41.0642326]
[1644677236547,5.316,94.106,93.982,53.60889279]
[1644677236748,5.566,94.106,93.983,17.67814148]
[1644677236946,5.566,94.106,93.983,20.30204444]
[1644677237347,5.566,94.106,93.984,17.67814148]
[1644677237750,5.566,94.106,93.99,15.9507]
[1644677237949,5.316,94.106,94.0,12.75]
[1644677238148,35.70390971,94.107,94.001,31.8742297]
[1644677238350,35.70390971,94.107,94.001,62.09703137]
[1644677238649,35.70390971,94.107,94.002,45.78772254]
[1644677239049,35.70390971,94.107,94.003,45.78772254]
[1644677239451,5.316,94.131,94.004,45.78772254]
[1644677239649,5.316,94.131,94.02,15.945]
[1644677239950,24.2175,94.138,94.03,172.11]
[1644677240151,5.314,94.178,94.03,172.11]
[1644677240449,43.23558557,94.141,94.032,41.0642326]
[1644677240851,43.23558557,94.141,94.033,30.22280167]
[1644677241051,48.54958557,94.141,94.033,30.22280167]
[1644677241254,48.54958557,94.141,94.034,30.22280167]
[1644677241656,48.54958557,94.141,94.035,27.59889871]
[1644677241854,48.54958557,94.141,94.061,31.8742297]
[1644677242052,48.54958557,94.141,94.07,12.75]
[1644677242953,48.54958557,94.141,94.05,12.75]
[1644677243154,50.84650296,94.14,94.03,5.313]
[1644677243352,5.314,94.139,94.03,5.313]
[1644677243554,7.93790296,94.139,94.03,5.313]
[1644677243753,2.87390296,94.138,94.031,47.28118833]
[1644677243952,5.314,94.137,94.031,47.28118833]
[1644677244160,7.93790296,94.137,94.031,47.28118833]
[1644677244357,5.314,94.137,94.031,47.28118833]
[1644677244755,5.314,94.137,94.032,49.06661142]
[1644677244957,47.9726,94.14,94.04,159.36]
[1644677245154,43.23558557,94.141,94.05,12.75]
[1644677245356,15.9371,94.2,94.07,15.9362]
[1644677245853,5.311,94.199,94.08,12.75]
[1644677246054,2.62390296,94.199,94.08,12.75]
[1644677246253,46.6572877,94.198,94.08,42.19930113]
[1644677246453,41.3462877,94.198,94.08,42.19930113]
[1644677246654,8.18490296,94.197,94.06,12.75]
[1644677246855,24.2981,94.196,94.06,12.75]
[1644677247056,5.311,94.195,94.06,12.75]
[1644677247257,8.18490296,94.195,94.06,12.75]
[1644677247657,2.62390296,94.194,94.061,45.44411828]
[1644677247860,15.9387,94.19,94.061,45.44411828]
[1644677248058,5.312,94.189,94.061,45.44411828]
[1644677248257,8.18590296,94.189,94.061,45.44411828]
[1644677248457,2.62390296,94.188,94.061,45.44411828]
[1644677248658,10.04016501,94.187,94.061,45.44411828]
[1644677248859,4.72816501,94.186,94.062,2.62390296]
[1644677249058,15.9414,94.17,94.061,45.44411828]
[1644677249262,40.93957494,94.168,94.06,12.75]
[1644677249463,28.9689,94.167,94.06,12.75]
[1644677249660,29.2189,94.167,94.04,12.75]
[1644677249858,28.14615404,94.166,94.03,12.75]
[1644677250058,5.313,94.165,94.03,12.75]
[1644677250258,15.9428,94.16,94.031,45.49564605]
[1644677250461,5.313,94.159,94.031,2.62390296]
[1644677250658,7.93690296,94.159,94.03,12.75]
[1644677251058,2.62390296,94.158,94.03,12.75]
[1644677251259,5.563,94.157,94.03,12.75]
[1644677251459,5.563,94.157,94.031,39.63206746]
[1644677251659,15.9471,94.14,94.031,39.63206746]
[1644677251861,45.64244875,94.139,94.03,12.75]
[1644677252159,22.7864,94.138,94.03,12.75]
[1644677252360,5.314,94.137,94.03,12.75]
[1644677252558,5.564,94.137,94.03,12.75]
[1644677252760,15.9483,94.13,94.031,39.15812074]
[1644677253160,15.9483,94.13,94.03,12.75]
[1644677253361,0.25,94.129,94.03,12.75]
[1644677253562,5.314,94.128,94.03,12.75]
[1644677253865,0.25,94.127,94.03,12.75]
[1644677254064,5.314,94.126,94.03,12.75]
[1644677254264,0.25,94.125,94.03,12.75]
[1644677254462,47.34166019,94.123,94.03,12.75]
[1644677254664,15.949,94.12,94.03,12.75]
[1644677254865,5.314,94.119,94.03,12.75]
[1644677255065,0.25,94.119,94.03,12.75]
[1644677255262,5.314,94.118,94.03,12.265614]
[1644677255662,0.25,94.117,94.03,12.265614]
[1644677255865,60.0,94.115,94.006,2.62390296]
[1644677256066,60.0,94.109,93.99,12.75]
[1644677256266,0.25,94.108,93.97,12.75]
[1644677256468,12.75,94.1,93.917,5.55166818]
[1644677256669,2.87929532,94.087,93.93,12.75]
[1644677256871,2.87929532,94.082,93.941,35.99913167]
[1644677257070,48.39486281,94.039,93.95,12.75]
[1644677257268,48.39486281,94.039,93.941,35.99913167]
[1644677259467,47.89486281,94.039,93.941,35.99913167]
[1644677259667,0.25,94.038,93.941,35.99913167]
[1644677259869,5.319,94.037,93.941,35.99913167]
[1644677260471,15.9642,94.03,93.94,12.75]
[1644677260872,5.569,94.029,93.91,12.75]
[1644677261669,5.569,94.029,93.911,37.5139831]
[1644677262468,15.9673,94.02,93.911,37.5139831]
[1644677262670,47.00522857,94.018,93.911,37.5139831]
[1644677262869,29.6264,94.017,93.911,37.5139831]
[1644677263070,29.8764,94.017,93.911,37.5139831]
[1644677263770,15.9675,94.01,93.911,37.5139831]
[1644677263970,5.321,94.009,93.911,37.5139831]
[1644677264173,5.571,94.009,93.911,37.5139831]
[1644677264572,5.321,94.009,93.911,37.5139831]
[1644677264775,24.3054,94.017,93.912,105.1]
[1644677265072,5.321,94.016,93.913,9.86453111]
[1644677265269,47.00522857,94.018,93.913,24.31924015]
[1644677265672,5.321,94.017,93.914,9.86453111]
[1644677266771,5.321,94.017,93.92,15.9649]
[1644677266971,22.8451,94.036,93.932,105.1]
[1644677267273,5.32,94.07,93.94,12.75]
[1644677267571,5.319,94.079,93.94,180.81]
[1644677267771,5.319,94.098,93.95,159.36]
[1644677267976,40.2961929,94.058,93.98,15.9533]
[1644677268171,5.319,94.099,93.99,12.75]
[1644677268772,47.9302,94.1,93.99,12.75]
[1644677268974,47.9302,94.1,94.0,15.9509]
[1644677269175,44.49727022,94.099,94.01,12.75]
[1644677269373,49.81327022,94.099,94.01,12.75]
[1644677270773,49.81327022,94.099,94.01,28.7007]
[1644677270977,5.316,94.099,94.01,28.7007]
[1644677271178,2.90572462,94.129,94.011,105.1]
[1644677271375,5.315,94.164,94.03,159.36]
[1644677271583,5.314,94.154,94.04,172.11]
[1644677271779,5.314,94.163,94.05,12.75]
[1644677271978,27.73552462,94.183,94.05,12.75]
[1644677271979,5.313,94.153,94.05,12.75]
[1644677272174,47.97226115,94.162,94.06,15.9417]
[1644677272374,5.313,94.161,94.07,12.75]
[1644677272575,47.97226115,94.162,94.071,42.62316755]
[1644677272773,5.312,94.16,94.071,42.62316755]
[1644677272974,5.312,94.161,94.071,42.62316755]
[1644677273477,5.312,94.161,94.072,2.62390296]
[1644677273675,5.312,94.161,94.071,42.62316755]
[1644677274075,5.312,94.161,94.071,45.24707051]
[1644677274277,47.97226115,94.162,94.071,45.24707051]
[1644677274278,47.47226115,94.162,94.071,42.62316755]
[1644677274477,5.312,94.161,94.07,12.75]
[1644677274677,113.0,94.159,94.07,12.75]
[1644677274877,5.312,94.158,94.07,12.75]
[1644677275076,4.78807341,94.157,94.07,12.75]
[1644677275376,5.562,94.156,94.07,12.75]
[1644677275577,0.25,94.156,94.07,12.75]
[1644677275776,5.312,94.155,94.07,12.75]
[1644677276177,113.0,94.159,94.07,12.75]
[1644677276380,5.312,94.158,94.07,12.75]
[1644677276582,5.312,94.161,94.07,12.75]
[1644677277180,0.25,94.16,94.07,12.75]
[1644677277381,0.25,94.16,93.99,159.36]
[1644677277382,10.10157804,94.159,93.99,159.36]
[1644677277581,15.949,94.14,93.99,53.1634]
[1644677277781,57.04167804,94.139,94.0,12.75]
[1644677277981,105.1,94.138,93.965,16.20357015]
[1644677278182,78.4199,94.137,93.965,16.20357015]
[1644677278382,35.38546549,94.128,93.98,12.75]
[1644677278584,12.75,94.12,93.981,41.30983703]
[1644677278784,49.9281,94.119,93.981,41.30983703]
[1644677278986,15.9509,94.11,93.99,15.9527]
[1644677279185,36.34011186,94.109,94.0,12.75]
[1644677279386,36.34011186,94.109,94.001,43.78340676]
[1644677279587,5.316,94.108,94.001,59.98697691]
[1644677279784,36.34011186,94.109,94.001,59.98697691]
[1644677279982,36.34011186,94.109,94.002,18.82747311]
[1644677280183,36.34011186,94.109,94.01,15.9497]
[1644677280384,36.34011186,94.109,94.02,12.75]
[1644677280584,5.315,94.108,94.021,44.76160107]
[1644677280784,36.34011186,94.109,94.021,44.76160107]
[1644677280983,5.315,94.108,94.021,44.76160107]
[1644677281287,0.25,94.107,94.021,44.76160107]
[1644677281484,5.315,94.108,94.021,44.76160107]
[1644677281683,36.34011186,94.109,94.021,44.76160107]
[1644677282285,0.25,94.108,94.021,44.76160107]
[1644677282483,5.315,94.107,94.021,44.76160107]
[1644677282683,0.25,94.106,94.021,44.76160107]
[1644677283104,0.25,94.106,94.02,12.75]
[1644677283404,5.315,94.105,94.0,12.75]
[1644677283607,5.315,94.105,93.99,12.75]
[1644677283809,2.87390296,94.104,93.99,12.75]
[1644677284204,2.62390296,94.103,93.991,47.29681933]
[1644677284604,15.9522,94.1,93.991,47.29681933]
[1644677284806,5.566,94.099,93.991,47.29681933]
[1644677285005,0.25,94.099,93.991,47.29681933]
[1644677285208,5.316,94.098,93.991,47.29681933]
[1644677285607,15.9545,94.09,93.99,12.75]
[1644677285805,5.566,94.089,93.99,12.75]
[1644677286006,5.316,94.096,93.97,12.75]
[1644677286206,5.567,94.088,93.97,12.75]
[1644677286410,0.25,94.088,93.97,12.75]
[1644677286609,15.9584,94.07,93.971,47.97240435]
[1644677286807,46.17276516,94.069,93.971,47.97240435]
[1644677287010,54.11366812,94.069,93.971,47.97240435]
[1644677287207,51.48976516,94.069,93.94,12.75]
[1644677287406,50.50130296,94.068,93.94,12.75]
[1644677287606,5.317,94.067,93.94,12.75]
[1644677287806,5.317,94.067,93.941,16.20357015]
[1644677288007,5.317,94.067,93.941,18.82747311]
[1644677288209,5.317,94.067,93.942,46.21703627]
[1644677288608,5.317,94.067,93.943,2.62390296]
[1644677288812,15.9599,94.06,93.95,15.9604]
[1644677289011,47.8774,94.068,93.961,46.65618737]
[1644677289012,5.317,94.059,93.961,46.65618737]
[1644677289311,5.567,94.066,93.961,46.65618737]
[1644677289509,0.25,94.058,93.961,46.65618737]
[1644677289708,5.317,94.065,93.961,46.65618737]
[1644677290009,15.9607,94.05,93.94,12.75]
[1644677290211,28.2057,94.049,93.92,12.75]
[1644677290409,55.59230296,94.049,93.92,12.75]
[1644677290608,67.11045837,94.049,93.92,12.75]
[1644677290809,44.44137257,94.048,93.921,41.72396261]
[1644677291012,5.32,94.047,93.921,41.72396261]
[1644677291312,5.57,94.047,93.921,41.72396261]
[1644677291709,15.9671,94.02,93.921,41.72396261]
[1644677291910,42.51853293,94.018,93.921,41.72396261]
[1644677292110,42.51853293,94.018,93.92,12.75]
[1644677292310,5.57,94.017,93.92,12.75]
[1644677293110,5.57,94.017,93.921,41.12396818]
[1644677293809,15.9682,94.01,93.921,41.12396818]
[1644677294012,5.321,94.009,93.92,12.75]
[1644677294214,5.32,94.016,93.92,12.75]
[1644677294416,0.25,94.008,93.922,2.62390296]
[1644677295015,0.25,94.008,93.923,41.2616925]
[1644677295215,5.321,94.007,93.923,41.2616925]
[1644677295416,5.321,94.007,93.923,43.88559546]
[1644677295614,0.25,94.006,93.923,43.88559546]
[1644677295814,5.321,94.005,93.923,43.88559546]
[1644677296218,0.25,94.004,93.923,43.88559546]
[1644677296614,44.80365277,94.002,93.923,43.88559546]
[1644677296819,5.321,94.001,93.923,41.2616925]
[1644677297014,15.9692,94.0,93.923,41.2616925]
[1644677297220,5.321,93.999,93.923,41.2616925]
[1644677297616,0.25,93.998,93.892,2.62390296]
[1644677297815,24.9716,93.998,93.892,2.62390296]
[1644677298629,24.9716,93.998,93.893,43.40876627]
[1644677298823,15.9709,93.99,93.893,43.40876627]
[1644677299124,5.322,93.989,93.9,15.9694]
[1644677299328,5.572,93.989,93.9,28.7194]
[1644677299523,5.572,93.989,93.901,2.62390296]
[1644677300423,5.572,93.989,93.9,12.75]
[1644677300622,0.25,93.989,93.9,12.75]
[1644677301430,0.25,93.989,93.901,2.62390296]
[1644677301631,35.62584151,93.987,93.901,2.62390296]